{"text_format":"1","workbook":"xlsx","n_sheets":1,"sheets":["Лист1"],"not_rendered":{"charts":0,"images":0,"macros":1,"external_links":0,"defined_names":0,"comments":0,"pivot_tables":0},"unopened":[],"bounds":{"document_bytes":16777216,"sheet_cells":100000,"rows_first":2000,"rows_last":500,"rows_between":2000,"halvings":0,"cell_chars":16384,"cell_head_chars":4096},"cells_cut":0,"cells_raw":0,"read":"whole","date_system":"1900"}

{"sheet":"Лист1","index":0,"n_rows":21,"n_cols":8,"rows_kept":21,"cut":false,"hidden":false,"merged":[]}
[]
["Есть интересный прайс лист. И наверное то что я сейчас спрошу, сделать невозможно, но я все же спрошу. А вдруг.",null,null,null,null,null,null,{"$f":"d(A2)","v":0}]
["В прайслисте, есть столбец с наименованием товаров, например:",null,null,null,null,null,null,{"$f":"d(A3)","v":0}]
[null,null,null,null,null,null,null,0]
["Ноутбук ACER VN7-571G-50ZN (NX.MUXEU.008)",null,null,null,null,null,null,{"$f":"d(A5)","v":"VN7-571G-50ZN"}]
["Ноутбук ACER VN7-591G-57YD (NX.MUUEU.005)",null,null,null,null,null,null,"VN7-591G-57YD"]
["Ноутбук Acer AS VN7-791G-588X (NX.MQREU.009)",null,null,null,null,null,null,"VN7-791G-588X"]
["Ноутбук ACER Packard Bell ENTG81BA-C7WA (NX.C3YEU.009)",null,null,null,null,null,null,"ENTG81BA-C7WA"]
["Ноутбук Apple A1534 MacBook 12' Retina (MK4M2UA/A)",null,null,null,null,null,null,"A1534"]
["Ноутбук ASUS E402SA-WX082T (90NB0B62-M02450)",null,null,null,null,null,null,"E402SA-WX082T"]
[null,null,null,null,null,null,null,0]
["и тд.",null,null,null,null,null,null,0]
[null,null,null,null,null,null,null,0]
["Как выудить в Отдельный, скажем [9] столбец, модель данного товара, если она находится ДО скопок, и каждый раз, меняет свое расположение по оношению к одному и томуже месту расположения. К примеру:",null,null,null,null,null,null,{"$f":"d(A14)","v":"[9]"}]
["Ноутбук ACER VN7-591G-57YD (NX.MUUEU.005) модель VN7-591G-57YD",null,null,null,null,null,null,{"$f":"d(A15)","v":"VN7-591G-57YD"}]
["а тут:",null,null,null,null,null,null,0]
["Ноутбук ACER Packard Bell ENTG81BA-C7WA (NX.C3YEU.009) модель - ENTG81BA-C7WA",null,null,null,null,null,null,{"$f":"d(A17)","v":"ENTG81BA-C7WA"}]
["или уже тут:",null,null,null,null,null,null,0]
["Ноутбук Apple A1534 MacBook 12' Retina (MK4M2UA/A) модель - A1534",null,null,null,null,null,null,"A1534"]
[null,null,null,null,null,null,null,0]
["И все эти модели мне нужно вывести в 9й столбец. До недавнего времени, я пользовался формулой:",null,null,null,null,null,null,0]